bitfinex/quotes_SOLUSD_20240613
["timestamp","ask_amount","ask_price","bid_price","bid_amount"]
[1718306519922,7.63,148.75,148.72,2.4878]
[1718306520312,7.63,148.74,148.71,2.4879]
[1718306520501,7.63,148.73,148.7,2.488]
[1718306520706,7.63,148.73,148.69,22.4883]
[1718306520901,2.4877,148.73,148.68,2.4885]
[1718306521112,7.63,148.7,148.68,2.4885]
[1718306521495,7.63,148.7,148.66,37.4215]
[1718306521700,7.63,148.7,148.69,2.4883]
[1718306521895,45.51,148.74,148.66,42.3991]
[1718306521896,47.9976,148.74,148.7,2.4882]
[1718306522131,7.63,148.72,148.7,2.4882]
[1718306522432,45.51,148.74,148.71,2.488]
[1718306522648,7.63,148.72,148.71,2.488]
[1718306522839,7.63,148.72,148.7,2.4881]
[1718306525032,7.63,148.72,148.71,2.488]
[1718306525406,45.51,148.74,148.71,2.488]
[1718306525930,7.63,148.73,148.71,2.488]
[1718306527522,7.63,148.73,148.7,2.4881]
[1718306529525,7.63,148.73,148.69,4.9767]
[1718306529738,7.63,148.73,148.71,2.488]
[1718306530236,7.63,148.73,148.72,2.4878]
[1718306530814,7.63,148.73,148.71,2.4879]
[1718306531629,7.63,148.73,148.71,2.488]
[1718306532635,7.63,148.73,148.72,2.4878]
[1718306533023,7.63,148.73,148.71,2.4879]
[1718306533523,253.1,148.81,148.71,7.63]
[1718306533729,7.63,148.77,148.74,2.4874]
[1718306533929,18.427,148.79,148.72,40.069]
[1718306533930,15.9402,148.79,148.76,2.4872]
[1718306534147,7.63,148.77,148.76,2.4872]
[1718306534440,7.63,148.78,148.76,2.4872]
[1718306537146,0.51,148.79,148.76,2.4872]
[1718306537348,7.63,148.78,148.76,2.4872]
[1718306538322,7.63,148.78,148.75,2.4873]
[1718306538528,7.63,148.76,148.75,2.4873]
[1718306538722,7.63,148.76,148.73,20.0]
[1718306538922,7.63,148.76,148.74,2.4874]
[1718306539758,7.63,148.76,148.75,2.4873]
[1718306544960,253.1,148.81,148.75,2.4873]
[1718306545259,6.8737378,148.86,148.8,4.9729]
[1718306545432,6.8737378,148.86,148.83,2.486]
[1718306545836,7.63,148.84,148.83,2.486]
[1718306546553,0.8490378,148.86,148.85,2.4857]
[1718306546727,8.4790378,148.86,148.85,2.4857]
[1718306546929,8.4790378,148.86,148.83,2.4859]
[1718306547165,7.63,148.84,148.83,2.4859]
[1718306547577,7.63,148.84,148.82,2.4861]
[1718306547743,0.8490378,148.86,148.8,7.4595]
[1718306547952,0.8490378,148.86,148.84,2.4858]
[1718306548153,0.8490378,148.86,148.82,2.4861]
[1718306548565,0.8490378,148.86,148.83,2.486]
[1718306548872,0.8490378,148.86,148.82,4.9723]
[1718306549084,8.4790378,148.86,148.85,2.4857]
[1718306549384,8.4790378,148.86,148.84,2.4857]
[1718306552551,8.4790378,148.86,148.85,2.4857]
[1718306554375,8.4790378,148.86,148.81,7.4591]
[1718306554580,7.8,148.85,148.83,2.486]
[1718306555077,0.8490378,148.86,148.84,2.4858]
[1718306555251,7.63,148.85,148.84,2.4858]
[1718306555460,8.4790378,148.86,148.84,2.4858]
[1718306555879,7.63,148.85,148.84,2.4858]
[1718306556363,7.63,148.85,148.83,2.4859]
[1718306556568,0.17,148.85,148.83,2.486]
[1718306556785,7.63,148.84,148.83,2.486]
[1718306556991,7.63,148.85,148.83,2.486]
[1718306558463,7.63,148.84,148.83,2.486]
[1718306558663,45.8490378,148.86,148.83,2.486]
[1718306558877,0.8490378,148.86,148.84,2.4858]
[1718306559199,7.63,148.85,148.84,2.4858]
[1718306563919,0.8490378,148.86,148.84,2.4858]
[1718306564098,7.63,148.85,148.84,2.4858]
[1718306564416,0.8490378,148.86,148.84,2.4858]
[1718306564586,7.63,148.85,148.84,2.4858]
[1718306565308,0.8490378,148.86,148.84,2.4858]
[1718306565603,7.63,148.85,148.84,2.4858]
[1718306566016,0.8490378,148.86,148.84,2.4858]
[1718306566312,7.63,148.85,148.84,2.4858]
[1718306567529,7.63,148.85,148.83,2.4859]
[1718306568013,0.8490378,148.86,148.83,2.4859]
[1718306568230,7.63,148.85,148.84,2.4858]
[1718306568899,7.63,148.85,148.83,2.4859]
[1718306569728,55.6259,148.84,148.79,2.4865]
[1718306570031,7.63,148.81,148.8,2.4864]
[1718306572023,7.63,148.81,148.79,2.4866]
[1718306572703,7.63,148.81,148.78,20.0]
[1718306572907,2.486,148.83,148.77,14.9223]
[1718306573208,7.63,148.8,148.79,2.4866]
[1718306574427,7.63,148.81,148.8,2.4864]
[1718306574797,45.17,148.84,148.8,4.973]
[1718306575003,45.17,148.84,148.82,2.4861]
[1718306575195,7.63,148.83,148.81,2.4862]
[1718306575700,7.63,148.83,148.82,2.4862]
[1718306576721,7.63,148.83,148.8,4.973]
[1718306576722,7.63,148.83,148.81,2.4862]
[1718306580325,7.63,148.83,148.78,4.9734]
[1718306580510,8.14,148.82,148.79,2.4866]
[1718306580717,7.63,148.81,148.79,2.4866]
[1718306581116,7.63,148.81,148.78,22.4868]
[1718306581313,7.63,148.8,148.78,22.4868]
[1718306581517,7.63,148.8,148.79,2.4867]
[1718306582038,7.63,148.81,148.79,2.4867]
[1718306583947,0.51,148.82,148.8,2.4865]
[1718306584104,7.63,148.81,148.79,2.4866]
[1718306584304,0.51,148.82,148.81,2.4863]
[1718306584501,7.8,148.82,148.8,2.4864]
[1718306584808,7.63,148.81,148.8,2.4864]
[1718306587308,8.14,148.82,148.8,2.4864]
[1718306588332,0.51,148.82,148.8,2.4864]
[1718306588513,8.14,148.82,148.8,2.4864]
[1718306589329,0.51,148.82,148.8,2.4864]
[1718306589634,8.14,148.82,148.8,2.4864]
[1718306590909,45.0,148.84,148.8,4.973]
[1718306591108,0.51,148.83,148.82,2.4861]
[1718306591324,8.14,148.83,148.81,2.4863]
[1718306591526,0.51,148.83,148.81,2.4863]
[1718306591825,8.14,148.83,148.81,2.4863]
[1718306593536,8.14,148.83,148.79,22.38]
[1718306593712,8.14,148.83,148.81,2.4863]
[1718306594312,0.8490378,148.86,148.79,17.4062]
[1718306594543,0.8490378,148.86,148.84,2.4858]
[1718306594742,0.8490378,148.86,148.82,9.9445]
[1718306594743,0.8490378,148.86,148.83,2.4859]
[1718306594953,0.8490378,148.86,148.81,20.0616]
[1718306595240,0.8490378,148.86,148.83,2.4859]
[1718306595426,0.8490378,148.86,148.82,2.4861]
[1718306595632,0.8490378,148.86,148.83,2.486]
[1718306596132,8.4790378,148.86,148.83,2.486]
[1718306596318,0.8490378,148.86,148.84,2.4857]
[1718306596650,0.8490378,148.86,148.83,2.4859]
[1718306597149,45.8490378,148.86,148.82,20.0]
[1718306597447,0.8490378,148.86,148.81,2.4863]
[1718306598428,0.8490378,148.86,148.82,2.4862]
[1718306600335,0.8490378,148.86,148.83,2.486]
[1718306600546,0.8490378,148.86,148.81,4.9727]
[1718306600749,8.4790378,148.86,148.83,2.4859]
[1718306601839,7.63,148.85,148.82,2.4861]
[1718306602017,0.8490378,148.86,148.82,2.4861]
[1718306602224,7.63,148.85,148.83,2.486]
[1718306605245,8.4790378,148.86,148.83,2.486]
[1718306605423,8.4790378,148.86,148.82,2.4861]
[1718306606140,7.63,148.85,148.82,2.4861]
[1718306606336,7.63,148.85,148.81,2.4863]
[1718306606539,0.8490378,148.86,148.82,2.4862]
[1718306606920,0.8490378,148.86,148.85,2.4857]
[1718306607120,0.8490378,148.86,148.83,22.4859]
[1718306607322,8.4790378,148.86,148.83,22.4859]
[1718306607747,8.4790378,148.86,148.83,2.4859]
[1718306608125,0.8490378,148.86,148.85,2.4857]
[1718306608736,0.8490378,148.86,148.82,32.6022]
[1718306609045,0.8490378,148.86,148.84,2.4858]
[1718306609824,0.8490378,148.86,148.85,2.4857]
[1718306610046,8.4790378,148.86,148.82,20.0]
[1718306610338,8.4790378,148.86,148.83,2.4859]
[1718306610339,0.8490378,148.86,148.83,2.4859]
[1718306611853,0.8490378,148.86,148.84,2.4858]
[1718306612348,0.8490378,148.86,148.83,2.486]
[1718306612544,0.51,148.85,148.83,2.486]
[1718306614325,0.51,148.85,148.82,20.0]
[1718306614544,7.63,148.83,148.79,22.3798]
[1718306615053,7.63,148.83,148.82,2.4862]
[1718306616636,0.51,148.85,148.82,2.4862]
[1718306616839,0.8490378,148.86,148.82,12.4306]
[1718306617162,0.8490378,148.86,148.85,7.4571]
[1718306617467,0.8490378,148.86,148.85,2.4857]
[1718306620333,0.8490378,148.86,148.81,12.6026]
[1718306620651,0.8490378,148.86,148.84,2.4858]
[1718306621061,8.4790378,148.86,148.84,2.4858]
[1718306621669,8.4790378,148.86,148.82,22.4581]
[1718306622168,0.8490378,148.86,148.82,22.4581]
[1718306623053,0.8490378,148.86,148.85,2.4857]
[1718306624358,0.8490378,148.86,148.84,2.4858]
[1718306625660,8.4790378,148.86,148.84,2.4858]
[1718306626271,0.8490378,148.86,148.85,7.4571]
[1718306626570,0.8490378,148.86,148.85,2.4857]
[1718306627849,0.8490378,148.86,148.84,2.4858]
[1718306628362,0.8490378,148.86,148.85,2.4857]
[1718306628676,0.8490378,148.86,148.84,2.4858]
[1718306628849,8.4790378,148.86,148.84,2.4858]
[1718306630391,0.8490378,148.86,148.85,2.4857]
[1718306635381,0.8490378,148.86,148.84,2.4858]
[1718306635675,0.8490378,148.86,148.85,2.4857]
[1718306637077,0.8490378,148.86,148.84,2.4857]
[1718306637264,8.4790378,148.86,148.84,2.4857]
[1718306638397,8.4790378,148.86,148.85,2.4857]
[1718306640476,8.4790378,148.86,148.84,2.4857]
[1718306640885,0.8490378,148.86,148.85,2.4857]
[1718306641583,1.1890378,148.86,148.83,2.486]
[1718306641781,53.8190378,148.86,148.83,2.486]
[1718306641982,8.8190378,148.86,148.83,2.486]
[1718306642181,0.8490378,148.86,148.82,12.4308]
[1718306642359,0.8490378,148.86,148.84,2.4857]
[1718306642766,0.8490378,148.86,148.83,22.4859]
[1718306642970,53.4790378,148.86,148.83,22.4859]
[1718306643574,7.63,148.85,148.83,22.4859]
[1718306643775,7.63,148.84,148.79,9.9468]
[1718306643997,7.63,148.83,148.79,9.9468]
[1718306644199,7.63,148.83,148.8,2.4865]
[1718306644374,7.63,148.83,148.81,2.4863]
[1718306644867,7.63,148.83,148.8,2.4864]
[1718306645070,7.63,148.82,148.8,2.4864]
[1718306645277,0.51,148.85,148.79,2.4866]
[1718306645278,7.63,148.81,148.79,2.4866]
[1718306645491,7.63,148.8,148.79,2.4866]
[1718306649114,7.97,148.8,148.77,2.487]
[1718306649401,7.63,148.79,148.76,27.4615]
[1718306649605,0.34,148.8,148.79,2.4867]
[1718306649606,7.63,148.8,148.79,2.4867]
[1718306649782,7.8,148.8,148.79,2.4867]
[1718306650388,15.9279,148.85,148.78,12.4341]
[1718306650709,7.63,148.82,148.8,2.4864]
[1718306650887,7.63,148.81,148.79,2.4866]
[1718306651393,7.63,148.81,148.78,4.9736]
[1718306651394,7.63,148.81,148.8,2.4865]
[1718306651775,7.63,148.81,148.79,2.4866]
[1718306652591,7.63,148.81,148.78,2.4867]
[1718306654015,7.63,148.81,148.79,2.4867]
[1718306655486,7.63,148.81,148.78,2.4867]
[1718306656276,7.63,148.81,148.79,2.4867]
[1718306656503,45.51,148.84,148.79,2.4867]
[1718306656714,7.63,148.81,148.79,2.4867]
[1718306656905,7.63,148.81,148.78,2.4867]
[1718306657301,45.51,148.84,148.79,2.4866]
[1718306657483,7.63,148.81,148.79,2.4866]
[1718306658406,7.63,148.81,148.78,2.4867]
[1718306658584,7.63,148.8,148.78,2.4867]
[1718306663406,7.63,148.79,148.75,2.4873]
[1718306663609,7.63,148.77,148.75,2.4873]
[1718306663921,7.63,148.76,148.74,2.4875]
[1718306664816,0.17,148.79,148.74,2.4875]
[1718306665003,7.63,148.76,148.74,2.4875]
[1718306665510,45.17,148.79,148.74,2.4875]
[1718306665692,7.63,148.76,148.75,2.4873]
[1718306666896,7.63,148.76,148.73,20.0]
[1718306667090,7.63,148.76,148.74,2.4874]
[1718306667697,7.63,148.76,148.75,2.4873]
[1718306668604,0.34,148.78,148.75,2.4873]
[1718306668791,7.63,148.76,148.75,2.4873]
[1718306671704,7.63,148.76,148.71,4.9758]
[1718306671904,7.63,148.73,148.72,2.4878]
[1718306672097,7.63,148.73,148.71,2.4879]
[1718306672304,7.63,148.72,148.71,2.4879]
[1718306672818,30.69,148.75,148.72,2.4878]
[1718306672819,0.17,148.75,148.72,2.4878]
[1718306673132,0.17,148.75,148.73,2.4877]
[1718306673435,7.63,148.74,148.72,2.4877]
[1718306673616,7.63,148.73,148.72,2.4877]
[1718306674810,7.63,148.73,148.7,4.9764]
[1718306675011,45.0,148.79,148.68,7.63]
[1718306675214,45.0,148.79,148.74,2.4874]
[1718306675416,7.63,148.75,148.73,2.4876]
[1718306675622,7.63,148.74,148.73,2.4876]
[1718306676030,7.63,148.74,148.69,7.63]
[1718306676031,7.63,148.74,148.69,22.395]
[1718306676248,2.487,148.77,148.69,22.395]
[1718306676249,7.63,148.72,148.71,2.488]
[1718306677330,7.63,148.72,148.7,2.4881]
[1718306678532,7.63,148.71,148.69,2.4882]
[1718306679038,7.63,148.72,148.69,2.4882]
[1718306679240,7.63,148.72,148.7,2.4882]
[1718306679538,7.63,148.72,148.68,32.4426]
[1718306679707,7.63,148.72,148.7,2.4881]
[1718306680029,7.63,148.71,148.7,2.4881]
[1718306683446,7.8,148.71,148.69,2.4882]
[1718306683626,7.8,148.71,148.7,2.4882]
[1718306683941,7.63,148.71,148.7,2.4882]
[1718306686347,8.14,148.71,148.69,2.4883]
[1718306686523,7.63,148.7,148.69,2.4883]
[1718306688147,0.34,148.71,148.69,2.4883]
[1718306688348,7.97,148.71,148.7,2.4882]
[1718306688649,8.14,148.71,148.7,2.4882]
[1718306688952,8.14,148.71,148.67,22.3981]
[1718306688953,8.14,148.71,148.69,2.4882]
[1718306689242,0.17,148.71,148.7,2.4882]
[1718306689447,7.63,148.72,148.7,2.4882]
[1718306690557,7.63,148.72,148.69,2.4883]
[1718306690941,0.51,148.73,148.69,2.4883]
[1718306691125,7.63,148.71,148.68,2.4884]
[1718306692051,7.63,148.71,148.69,2.4883]
[1718306696451,7.63,148.7,148.68,2.4884]
[1718306697458,7.63,148.7,148.67,24.9774]
[1718306697866,7.63,148.7,148.68,2.4884]
[1718306698089,7.63,148.7,148.69,2.4883]
[1718306698578,7.63,148.71,148.69,2.4883]
[1718306699549,7.63,148.71,148.67,32.4435]
[1718306699550,7.63,148.71,148.68,2.4884]
[1718306700478,0.51,148.73,148.68,2.4884]
[1718306700479,7.63,148.7,148.68,2.4884]
[1718306700673,7.63,148.7,148.67,20.0]
[1718306700674,7.63,148.69,148.67,20.0]
[1718306700974,7.63,148.69,148.64,17.4241]
[1718306700975,7.8,148.68,148.63,4.9785]
[1718306701177,7.63,148.67,148.65,20.0]
[1718306701381,7.63,148.67,148.65,22.4889]
[1718306701883,7.63,148.67,148.66,2.4889]
[1718306702784,7.63,148.67,148.65,2.4889]
[1718306703157,7.63,148.67,148.66,2.4889]
[1718306703459,53.14,148.67,148.65,2.4889]
[1718306703779,7.63,148.66,148.64,2.4891]
[1718306703948,45.34,148.67,148.63,2.4892]
[1718306704153,0.51,148.66,148.64,2.4892]
[1718306704386,7.63,148.65,148.64,2.4892]
[1718306705363,15.2888,148.7,148.65,2.4889]
[1718306705693,7.63,148.67,148.65,4.9781]
[1718306705975,45.51,148.69,148.66,2.4887]
[1718306706166,7.63,148.67,148.66,2.4887]
[1718306706361,45.51,148.69,148.66,2.4887]
[1718306706845,7.63,148.67,148.66,2.4887]
[1718306708443,13.748,148.67,148.63,2.4893]
[1718306708648,13.748,148.67,148.58,4.9803]
[1718306708649,7.63,148.64,148.58,4.9803]
[1718306708864,7.63,148.62,148.6,2.4898]
[1718306709646,7.63,148.62,148.59,2.49]
[1718306710389,7.63,148.61,148.59,2.4899]
[1718306710955,7.63,148.62,148.59,2.4899]
[1718306711250,7.63,148.61,148.59,2.4899]
[1718306711670,0.51,148.63,148.6,2.4898]
[1718306711872,7.63,148.62,148.6,2.4898]
[1718306715478,7.63,148.62,148.61,2.4897]
[1718306715678,0.51,148.63,148.61,2.4897]
[1718306715882,7.63,148.62,148.6,2.4897]
[1718306716176,6.118,148.67,148.58,20.0]
[1718306716478,7.63,148.65,148.63,2.4893]
[1718306717085,7.63,148.66,148.63,2.4893]
[1718306717273,7.63,148.65,148.63,2.4893]
[1718306718197,8.14,148.64,148.6,2.4898]
[1718306718495,8.14,148.64,148.56,12.4523]
[1718306718496,7.63,148.61,148.56,12.4523]
[1718306718781,45.0,148.63,148.58,2.4901]
[1718306718782,7.63,148.6,148.58,2.4901]
[1718306718985,7.63,148.61,148.59,2.49]
[1718306719986,7.63,148.61,148.6,2.4899]
[1718306720587,7.63,148.62,148.6,2.4899]
[1718306721473,7.63,148.62,148.59,2.4899]
[1718306722187,7.63,148.61,148.59,2.4899]
[1718306722565,7.63,148.61,148.58,22.4901]
[1718306722971,7.63,148.61,148.58,2.4901]
[1718306724805,7.63,148.61,148.59,2.49]
[1718306725094,7.63,148.6,148.58,2.4901]
[1718306726977,0.17,148.62,148.58,4.9804]
[1718306727181,7.63,148.61,148.59,2.49]
[1718306727672,7.63,148.6,148.59,2.49]
[1718306728299,0.17,148.62,148.59,2.49]
[1718306728485,7.63,148.6,148.59,2.49]
[1718306729179,0.17,148.62,148.59,2.49]
[1718306729493,7.63,148.6,148.59,2.49]
[1718306729690,7.63,148.61,148.59,2.49]
[1718306729898,7.63,148.61,148.6,2.4899]
[1718306730099,53.14,148.61,148.59,2.4899]
[1718306730392,7.97,148.61,148.59,2.4899]
[1718306730775,0.17,148.62,148.6,2.4899]
[1718306731099,2.4887,148.67,148.61,2.4896]
[1718306731266,7.63,148.63,148.59,4.98]
[1718306731466,7.63,148.62,148.61,2.4897]
[1718306731681,7.63,148.62,148.6,2.4898]
[1718306734899,7.4663,148.67,148.58,2.4901]
[1718306735116,30.52,148.68,148.57,22.4903]
[1718306735117,7.63,148.6,148.57,22.4903]
[1718306735414,2.4894,148.63,148.57,22.4903]
[1718306735588,7.63,148.6,148.57,22.4903]
[1718306736099,7.63,148.6,148.58,2.4902]
[1718306739105,7.63,148.6,148.57,22.4903]
[1718306739318,7.63,148.59,148.56,22.4905]
[1718306739503,7.63,148.58,148.56,2.4905]
[1718306740096,7.63,148.58,148.55,2.4906]
[1718306740283,7.63,148.56,148.54,2.4907]
[1718306740700,7.63,148.56,148.54,2.4909]
[1718306741205,7.63,148.56,148.55,2.4907]
[1718306741906,0.34,148.59,148.54,2.4907]
[1718306742080,0.34,148.59,148.56,2.4905]
[1718306742284,0.34,148.59,148.55,2.4906]
[1718306742513,0.17,148.58,148.55,2.4906]
[1718306743026,0.17,148.58,148.56,2.4905]
[1718306743232,7.63,148.58,148.56,2.4905]
[1718306743526,7.63,148.58,148.55,2.4906]
[1718306743736,7.63,148.58,148.56,2.4905]
[1718306743941,15.8925,148.64,148.54,17.4361]
[1718306744230,10.0,148.69,148.54,17.4361]
[1718306744231,2.4888,148.67,148.61,2.4896]
[1718306744440,253.1,148.7,148.64,2.4891]
[1718306744930,7.63,148.69,148.65,2.489]
[1718306745141,17.7349,148.72,148.64,4.9783]
[1718306745142,15.247,148.72,148.64,4.9783]
[1718306745450,7.63,148.71,148.68,2.4885]
[1718306745602,7.63,148.71,148.64,17.4242]
[1718306745603,7.63,148.71,148.66,22.4887]
[1718306745812,7.63,148.7,148.65,2.489]
[1718306746039,7.63,148.7,148.65,22.489]
[1718306746528,30.52,148.75,148.64,30.1191]
[1718306746529,7.63,148.69,148.64,30.1191]
[1718306746842,45.0,148.68,148.62,17.6384]
[1718306747123,7.63,148.64,148.61,9.0627]
[1718306747313,7.63,148.64,148.61,6.5731]
[1718306747496,7.63,148.65,148.62,2.4895]
[1718306747699,7.8,148.66,148.63,2.4893]
[1718306748424,7.8,148.66,148.61,6.5731]
[1718306748737,7.8,148.66,148.62,2.4895]
[1718306748909,0.17,148.66,148.62,2.4895]
[1718306749419,0.17,148.66,148.61,2.4896]
[1718306749615,0.17,148.66,148.6,2.4898]
[1718306750041,0.17,148.66,148.59,22.4899]
[1718306750042,2.6589,148.66,148.59,22.4899]
[1718306750337,0.34,148.65,148.59,22.4899]
[1718306750517,0.17,148.64,148.6,2.4897]
[1718306750715,0.17,148.64,148.61,2.4897]
[1718306751107,0.17,148.64,148.6,2.4898]
[1718306751640,0.17,148.64,148.61,2.4897]
[1718306752008,0.17,148.64,148.6,2.4898]
[1718306752619,0.17,148.64,148.59,20.0]
[1718306752826,0.34,148.65,148.62,2.4895]
[1718306754542,0.34,148.65,148.61,2.4896]
[1718306755107,0.34,148.65,148.6,2.4898]
[1718306755613,0.34,148.65,148.61,2.4897]
[1718306755830,0.34,148.65,148.6,2.4898]
[1718306756328,0.34,148.65,148.61,2.4897]
[1718306757442,0.34,148.65,148.6,2.4898]
[1718306757939,0.34,148.65,148.59,20.0]
[1718306758110,0.17,148.64,148.59,22.4899]
[1718306758513,0.17,148.64,148.6,2.4898]
[1718306758725,0.34,148.65,148.61,2.4897]
[1718306758958,0.51,148.66,148.61,2.4897]
[1718306760418,0.51,148.66,148.62,2.4895]
[1718306760818,0.51,148.66,148.61,2.4896]
[1718306761545,0.51,148.66,148.6,2.4898]
[1718306761716,0.51,148.66,148.61,2.4896]
[1718306762446,0.51,148.66,148.62,2.4895]
[1718306762847,0.51,148.66,148.61,2.4896]
[1718306763146,0.51,148.66,148.59,24.98]
[1718306763147,0.51,148.66,148.6,2.4898]
[1718306764532,0.51,148.66,148.61,2.4897]
[1718306766950,0.51,148.66,148.63,2.4893]
[1718306766951,0.34,148.66,148.63,2.4893]
[1718306767154,45.0,148.68,148.61,12.4484]
[1718306767463,0.51,148.67,148.63,2.4893]
[1718306769236,47.4884,148.69,148.63,2.4893]
[1718306769430,0.51,148.68,148.63,2.4893]
[1718306770456,0.51,148.68,148.64,2.4891]
[1718306770836,7.94,148.68,148.64,2.4891]
[1718306771047,7.6,148.68,148.63,10.0893]
[1718306771226,47.4884,148.69,148.62,27.6]
[1718306771425,7.6,148.67,148.63,2.4893]
[1718306772257,7.6,148.67,148.62,22.4895]
[1718306772478,7.6,148.66,148.62,22.4895]
[1718306774452,2.9985,148.68,148.62,22.4895]
[1718306774664,0.51,148.67,148.63,2.4893]
[1718306774871,7.6,148.66,148.63,2.4893]
[1718306775366,7.6,148.66,148.62,22.4895]
[1718306775542,7.6,148.65,148.61,22.4896]
[1718306775741,7.6,148.64,148.61,22.4896]
[1718306776572,7.6,148.64,148.62,2.4895]
[1718306777563,7.6,148.65,148.63,2.4894]
[1718306778134,7.6,148.66,148.63,2.4894]
[1718306778567,0.51,148.67,148.64,2.4891]
[1718306778748,45.0,148.69,148.64,2.4891]
[1718306778952,7.6,148.67,148.65,2.489]
[1718306779664,15.5953,148.71,148.63,7.6]
[1718306779867,48.5625,148.75,148.69,2.4883]
[1718306780040,7.6,148.72,148.67,4.9774]
[1718306780245,7.6,148.72,148.69,2.4882]
[1718306780648,253.1,148.78,148.72,2.4878]
[1718306780852,253.1,148.78,148.73,2.4877]
[1718306780853,7.6,148.76,148.73,2.4877]
[1718306781057,253.1,148.78,148.72,20.0]
[1718306781260,7.6,148.77,148.74,2.4875]
[1718306781679,7.6,148.77,148.73,2.4876]
[1718306782052,7.6,148.76,148.72,22.4878]
[1718306782275,7.6,148.76,148.72,2.4878]
[1718306782467,253.1,148.78,148.7,27.4645]
[1718306782781,253.1,148.78,148.71,12.4399]
[1718306782962,253.1,148.78,148.72,32.5756]
[1718306783279,22.2623,148.81,148.73,4.9753]
[1718306783474,7.6,148.79,148.75,2.4873]
[1718306783656,2.4859,148.84,148.77,2.4869]
[1718306783855,7.6,148.81,148.77,2.4869]
[1718306784082,275.3623,148.85,148.79,2.4866]
[1718306784394,275.3623,148.85,148.75,12.4365]
[1718306784395,275.3623,148.85,148.73,12.4382]
[1718306784552,2.4862,148.82,148.75,2.4872]
[1718306784757,7.6,148.8,148.75,10.0872]
[1718306784971,2.4862,148.82,148.75,10.0872]
[1718306784972,2.4862,148.82,148.76,20.0]
[1718306785152,2.4864,148.81,148.76,20.0]
[1718306785502,0.17,148.8,148.76,20.0]
[1718306785652,0.34,148.8,148.72,27.4635]
[1718306785847,0.34,148.81,148.73,4.9753]
[1718306786053,0.17,148.8,148.75,2.4873]
[1718306786580,0.34,148.81,148.76,2.4871]
[1718306786756,0.51,148.82,148.76,2.4871]
[1718306786955,0.51,148.82,148.74,20.0]
[1718306786956,0.51,148.82,148.75,2.4873]
[1718306787156,2.9962,148.82,148.75,2.4873]
[1718306789874,2.9962,148.82,148.76,2.4872]
[1718306791072,0.51,148.82,148.78,2.4868]
[1718306792389,15.888,148.85,148.8,2.4864]
[1718306793681,0.17,148.84,148.8,2.4864]
[1718306794480,1.1890378,148.86,148.81,2.4863]
[1718306794801,0.51,148.85,148.81,2.4862]
[1718306795278,45.8490378,148.86,148.82,2.4861]
[1718306795279,0.8490378,148.86,148.82,2.4861]
[1718306795472,0.8490378,148.86,148.81,2.4862]
[1718306797098,0.8490378,148.86,148.81,9.9454]